[Event "Klubbmästerskap 2025 Tisdag"]
[Site "Linköping, Sweden"]
[Date "2025.02.11"]
[Round "4.7"]
[White "Ivarsson, Simon"]
[Black "Modéer, Björn"]
[Result "1/2-1/2"]
[TimeControl "90 min + 30 sec/move"]
[WhiteElo "1771"]
[BlackElo "1700"]

1. e4 {[%clk 01:30:55]} {[%emt 00:00:03]} c6 {[%clk 01:30:49]} {[%emt
00:00:12]} 2. d4 {[%clk 01:30:48]} {[%emt 00:00:37]} d5 {[%clk 01:31:05]}
{[%emt 00:00:15]} 3. Nc3 {[%clk 01:30:48]} {[%emt 00:00:29]} dxe4 {[%clk
01:29:51]} {[%emt 00:01:44]} 4. Nxe4 {[%clk 01:30:52]} {[%emt 00:00:25]} Bf5
{[%clk 01:29:53]} {[%emt 00:00:28]} 5. Ng3 {[%clk 01:31:13]} {[%emt 00:00:10]}
Bg6 {[%clk 01:29:56]} {[%emt 00:00:27]} 6. h4 {[%clk 01:31:30]} {[%emt
00:00:13]} h5 {[%clk 01:28:06]} {[%emt 00:02:20]} 7. Nf3 {[%clk 01:31:20]}
{[%emt 00:00:39]} Nf6 {[%clk 01:27:33]} {[%emt 00:01:04]} 8. Bd3 {[%clk
01:30:16]} {[%emt 00:01:32]} Bxd3 {[%clk 01:26:05]} {[%emt 00:02:00]} 9. Qxd3
{[%clk 01:29:45]} {[%emt 00:01:01]} e6 {[%clk 01:25:26]} {[%emt 00:01:09]} 10.
Bd2 {[%clk 01:28:30]} {[%emt 00:01:44]} Bd6 {[%clk 01:23:20]} {[%emt 00:02:37]}
11. Ne4 {[%clk 01:27:37]} {[%emt 00:01:22]} Nxe4 {[%clk 01:21:14]} {[%emt
00:02:36]} 12. Qxe4 {[%clk 01:26:20]} {[%emt 00:01:47]} Nd7 {[%clk 01:21:07]}
{[%emt 00:00:37]} 13. O-O-O {[%clk 01:24:45]} {[%emt 00:02:04]} Nf6 {[%clk
01:19:23]} {[%emt 00:02:15]} 14. Qe2 {[%clk 01:22:19]} {[%emt 00:02:56]} Qc7
{[%clk 01:13:38]} {[%emt 00:06:16]} 15. Kb1 {[%clk 01:18:37]} {[%emt 00:04:11]}
Qb6 {[%clk 01:10:05]} {[%emt 00:04:03]} 16. c4 {[%clk 01:17:16]} {[%emt
00:01:52]} Ba3 {[%clk 01:03:28]} {[%emt 00:07:07]} 17. Bc3 {[%clk 01:15:58]}
{[%emt 00:01:48]} Bb4 {[%clk 01:01:26]} {[%emt 00:02:32]} 18. Rd3 {[%clk
01:14:01]} {[%emt 00:02:27]} O-O {[%clk 00:58:32]} {[%emt 00:03:23]} 19. Bxb4
{[%clk 01:10:06]} {[%emt 00:04:26]} Qxb4 {[%clk 00:58:40]} {[%emt 00:00:22]} 20.
Rb3 {[%clk 01:10:29]} {[%emt 00:00:06]} Qe7 {[%clk 00:51:22]} {[%emt 00:07:49]}
21. Rd1 {[%clk 01:05:52]} {[%emt 00:05:06]} Rad8 {[%clk 00:45:41]} {[%emt
00:06:12]} 22. Ng5 {[%clk 01:02:51]} {[%emt 00:03:31]} 1/2-1/2

[Event "Klubbmästerskap 2025 Tisdag"]
[Site "Linköping, Sweden"]
[Date "2025.02.11"]
[Round "4.8"]
[White "Larsson, Elin"]
[Black "Gustavsson, Rolf"]
[Result "1-0"]
[TimeControl "90 min + 30 sec/move"]
[WhiteElo "1666"]
[BlackElo "1695"]

1. e4 {[%clk 01:30:57]} {[%emt 00:00:02]} c6 {[%clk 01:30:59]} {[%emt
00:00:01]} 2. d4 {[%clk 01:31:19]} {[%emt 00:00:08]} d5 {[%clk 01:31:21]}
{[%emt 00:00:08]} 3. e5 {[%clk 01:31:29]} {[%emt 00:00:20]} Bf5 {[%clk
01:31:33]} {[%emt 00:00:19]} 4. h4 {[%clk 01:31:23]} {[%emt 00:00:35]} Bc8
{[%clk 01:31:12]} {[%emt 00:00:51]} 5. Nf3 {[%clk 01:24:29]} {[%emt 00:07:23]}
Bg4 {[%clk 01:30:14]} {[%emt 00:01:27]} 6. Be2 {[%clk 01:17:08]} {[%emt
00:07:52]} Bxf3 {[%clk 01:29:39]} {[%emt 00:01:06]} 7. Bxf3 {[%clk 01:17:17]}
{[%emt 00:00:20]} g6 {[%clk 01:22:57]} {[%emt 00:07:13]} 8. h5 {[%clk
00:55:49]} {[%emt 00:21:58]} h6 {[%clk 01:11:04]} {[%emt 00:12:22]} 9. hxg6
{[%clk 00:52:49]} {[%emt 00:03:30]} fxg6 {[%clk 01:11:14]} {[%emt 00:00:20]} 10.
Qd3 {[%clk 00:51:05]} {[%emt 00:02:15]} Kf7 {[%clk 01:08:24]} {[%emt 00:03:20]}
11. e6+ {[%clk 00:43:51]} {[%emt 00:07:44]} Kg7 {[%clk 01:06:32]} {[%emt
00:02:22]} 12. Bf4 {[%clk 00:35:08]} {[%emt 00:09:13]} Nf6 {[%clk 01:01:02]}
{[%emt 00:06:00]} 13. Rh3 {[%clk 00:27:43]} {[%emt 00:07:55]} g5 {[%clk
00:52:00]} {[%emt 00:09:29]} 14. Be5 {[%clk 00:15:32]} {[%emt 00:12:44]} Kg8
{[%clk 00:48:51]} {[%emt 00:03:39]} 15. Qg6+ {[%clk 00:13:22]} {[%emt
00:02:40]} Bg7 {[%clk 00:47:23]} {[%emt 00:01:58]} 16. Bxf6 {[%clk 00:12:23]}
{[%emt 00:01:28]} exf6 {[%clk 00:47:38]} {[%emt 00:00:16]} 17. Qf7+ {[%clk
00:11:10]} {[%emt 00:01:43]} Kh7 {[%clk 00:47:32]} {[%emt 00:00:36]} 18. Rxh6+
{[%clk 00:10:39]} {[%emt 00:01:00]} Kxh6 {[%clk 00:47:20]} {[%emt 00:00:40]} 19.
Qh5# {[%clk 00:11:00]} {[%emt 00:00:08]} 1-0

[Event "Klubbmästerskap 2025 Tisdag"]
[Site "Linköping, Sweden"]
[Date "2025.02.11"]
[Round "4.9"]
[White "Ekman, Theo"]
[Black "Karlsson, Henrik 1974"]
[Result "1-0"]
[TimeControl "90 min + 30 sec/move"]
[WhiteElo "1806"]
[BlackElo "1804"]

1. e4 {[%clk 01:30:56]} {[%emt 00:00:04]} e6 {[%clk 01:30:54]} {[%emt
00:00:07]} 2. d3 {[%clk 01:31:17]} {[%emt 00:00:08]} d5 {[%clk 01:31:17]}
{[%emt 00:00:07]} 3. Nd2 {[%clk 01:31:42]} {[%emt 00:00:05]} c5 {[%clk
01:31:43]} {[%emt 00:00:05]} 4. Ngf3 {[%clk 01:32:06]} {[%emt 00:00:06]} Nc6
{[%clk 01:32:06]} {[%emt 00:00:07]} 5. g3 {[%clk 01:32:28]} {[%emt 00:00:07]}
Nf6 {[%clk 01:32:18]} {[%emt 00:00:17]} 6. Bg2 {[%clk 01:32:50]} {[%emt
00:00:09]} dxe4 {[%clk 01:32:40]} {[%emt 00:00:09]} 7. dxe4 {[%clk 01:33:06]}
{[%emt 00:00:13]} e5 {[%clk 01:33:01]} {[%emt 00:00:10]} 8. O-O {[%clk
01:32:38]} {[%emt 00:00:57]} Bg4 {[%clk 01:33:08]} {[%emt 00:00:23]} 9. c3
{[%clk 01:29:55]} {[%emt 00:03:13]} Be7 {[%clk 01:25:53]} {[%emt 00:07:46]} 10.
h3 {[%clk 01:24:09]} {[%emt 00:06:14]} Bh5 {[%clk 01:25:03]} {[%emt 00:01:20]}
11. Qa4 {[%clk 01:23:21]} {[%emt 00:01:17]} a6 {[%clk 01:23:19]} {[%emt
00:02:15]} 12. Nxe5 {[%clk 01:16:30]} {[%emt 00:07:21]} b5 {[%clk 01:13:49]}
{[%emt 00:10:01]} 13. Nxc6 {[%clk 01:16:45]} {[%emt 00:00:15]} Qc7 {[%clk
01:14:03]} {[%emt 00:00:16]} 14. Qc2 {[%clk 01:16:33]} {[%emt 00:00:42]} Bg6
{[%clk 01:12:19]} {[%emt 00:02:15]} 15. Nxe7 {[%clk 01:15:33]} {[%emt
00:01:30]} 1-0

[Event "Klubbmästerskap 2025 Tisdag"]
[Site "Linköping, Sweden"]
[Date "2025.02.11"]
[Round "4.10"]
[White "Ahlström, Per"]
[Black "Lilljebjörn, Erik Gustaf"]
[Result "0-1"]
[TimeControl "90 min + 30 sec/move"]
[WhiteElo "1820"]
[BlackElo "1783"]

1. Nf3 {[%clk 01:30:54]} {[%emt 00:00:05]} Nf6 {[%clk 01:30:38]} {[%emt
00:00:22]} 2. g3 {[%clk 01:31:15]} {[%emt 00:00:09]} d5 {[%clk 01:30:17]}
{[%emt 00:00:52]} 3. Bg2 {[%clk 01:31:35]} {[%emt 00:00:10]} c6 {[%clk
01:29:29]} {[%emt 00:01:18]} 4. d3 {[%clk 01:27:06]} {[%emt 00:04:58]} e6
{[%clk 01:25:29]} {[%emt 00:04:30]} 5. O-O {[%clk 01:24:40]} {[%emt 00:02:56]}
Bd6 {[%clk 01:25:04]} {[%emt 00:00:55]} 6. Re1 {[%clk 01:22:32]} {[%emt
00:02:37]} O-O {[%clk 01:23:39]} {[%emt 00:01:56]} 7. e4 {[%clk 01:20:03]}
{[%emt 00:02:59]} dxe4 {[%clk 01:17:48]} {[%emt 00:06:21]} 8. dxe4 {[%clk
01:19:59]} {[%emt 00:00:34]} e5 {[%clk 01:17:13]} {[%emt 00:01:04]} 9. h3
{[%clk 01:17:39]} {[%emt 00:02:50]} h6 {[%emt 00:11:35]} 10. Bd2 {[%clk
01:09:18]} {[%emt 00:00:08]} Be6 {[%clk 01:09:32]} {[%emt 00:05:49]} 11. Bc3
{[%clk 01:09:18]} {[%emt 00:00:31]} Qc7 {[%clk 01:08:38]} {[%emt 00:01:25]} 12.
Nbd2 {[%clk 01:05:58]} {[%emt 00:03:49]} Na6 {[%clk 01:06:45]} {[%emt
00:02:23]} 13. Qe2 {[%clk 01:03:18]} {[%emt 00:03:10]} Nb4 {[%clk 01:01:07]}
{[%emt 00:06:09]} 14. Bxb4 {[%clk 00:51:42]} {[%emt 00:12:06]} Bxb4 {[%clk
00:59:52]} {[%emt 00:01:45]} 15. c3 {[%clk 00:51:46]} {[%emt 00:00:26]} Be7
{[%clk 00:55:16]} {[%emt 00:05:06]} 16. Nc4 {[%clk 00:50:37]} {[%emt 00:01:39]}
Nd7 {[%clk 00:55:00]} {[%emt 00:00:45]} 17. Rad1 {[%clk 00:44:24]} {[%emt
00:06:43]} Rad8 {[%clk 00:51:43]} {[%emt 00:03:48]} 18. Rd2 {[%clk 00:41:44]}
{[%emt 00:03:11]} b5 {[%clk 00:50:52]} {[%emt 00:01:20]} 19. Ne3 {[%clk
00:38:53]} {[%emt 00:03:20]} Bxa2 {[%clk 00:47:34]} {[%emt 00:03:49]} 20. Nf5
{[%clk 00:38:55]} {[%emt 00:00:28]} Nf6 {[%clk 00:45:11]} {[%emt 00:02:53]} 21.
Red1 {[%clk 00:28:46]} {[%emt 00:10:39]} Bc4 {[%clk 00:40:00]} {[%emt
00:05:41]} 22. Qe3 {[%clk 00:28:29]} {[%emt 00:00:47]} Rxd2 {[%clk 00:37:48]}
{[%emt 00:02:42]} 23. Rxd2 {[%clk 00:28:40]} {[%emt 00:00:19]} Kh7 {[%clk
00:34:42]} {[%emt 00:03:35]} 24. g4 {[%clk 00:24:26]} {[%emt 00:04:45]} Re8
{[%clk 00:29:33]} {[%emt 00:05:40]} 25. g5 {[%clk 00:22:01]} {[%emt 00:02:54]}
Nh5 {[%clk 00:27:00]} {[%emt 00:03:02]} 26. h4 {[%clk 00:15:16]} {[%emt
00:07:16]} Nf4 {[%clk 00:25:55]} {[%emt 00:01:35]} 27. b4 {[%clk 00:14:38]}
{[%emt 00:01:07]} h5 {[%clk 00:22:40]} {[%emt 00:03:45]} 28. Rd1 {[%clk
00:12:54]} {[%emt 00:02:13]} g6 {[%clk 00:18:22]} {[%emt 00:04:49]} 29. Nxe7
{[%clk 00:12:50]} {[%emt 00:00:34]} Qxe7 {[%clk 00:14:58]} {[%emt 00:03:54]} 30.
Ra1 {[%clk 00:12:33]} {[%emt 00:00:47]} Ra8 {[%clk 00:13:12]} {[%emt 00:02:16]}
31. Ra6 {[%clk 00:12:34]} {[%emt 00:00:29]} Qe6 {[%clk 00:10:56]} {[%emt
00:02:46]} 32. Nh2 {[%clk 00:11:38]} {[%emt 00:01:26]} Qd7 {[%clk 00:10:03]}
{[%emt 00:01:24]} 33. Bf3 {[%clk 00:11:23]} {[%emt 00:00:44]} Nh3+ {[%clk
00:08:00]} {[%emt 00:02:33]} 34. Kh1 {[%clk 00:10:40]} {[%emt 00:01:13]} Be6
{[%clk 00:07:03]} {[%emt 00:01:29]} 35. Ra1 {[%clk 00:09:57]} {[%emt 00:01:12]}
Bg4 {[%clk 00:06:28]} {[%emt 00:01:06]} 36. Rd1 {[%clk 00:05:36]} {[%emt
00:04:51]} Bxf3+ {[%clk 00:05:45]} {[%emt 00:01:13]} 37. Qxf3 {[%clk 00:06:00]}
{[%emt 00:00:05]} Nxf2+ {[%clk 00:05:38]} {[%emt 00:00:37]} 0-1

[Event "Klubbmästerskap 2025 Tisdag"]
[Site "Linköping, Sweden"]
[Date "2025.02.11"]
[Round "4.11"]
[White "Tonkin, Archie"]
[Black "Martinelle, Christoffer"]
[Result "0-1"]
[TimeControl "90 min + 30 sec/move"]
[WhiteElo "1657"]
[BlackElo "1765"]

1. c4 {[%emt 22:17:29]} c5 {[%clk 01:30:39]} {[%emt 00:00:16]} 2. Nc3 {[%clk
01:31:19]} {[%emt 00:00:09]} Nc6 {[%clk 01:30:44]} {[%emt 00:00:25]} 3. e4
{[%clk 01:31:20]} {[%emt 00:00:29]} g6 {[%clk 01:31:01]} {[%emt 00:00:13]} 4.
b3 {[%clk 01:31:05]} {[%emt 00:00:45]} Bg7 {[%clk 01:30:54]} {[%emt 00:00:36]}
5. Bb2 {[%clk 01:31:05]} {[%emt 00:00:31]} d6 {[%clk 01:26:30]} {[%emt
00:04:54]} 6. Nf3 {[%clk 01:30:36]} {[%emt 00:00:58]} Bg4 {[%clk 01:24:05]}
{[%emt 00:02:56]} 7. h3 {[%clk 01:30:31]} {[%emt 00:00:35]} Bxf3 {[%clk
01:24:05]} {[%emt 00:00:30]} 8. gxf3 {[%clk 01:30:27]} {[%emt 00:00:34]} a6
{[%clk 01:23:29]} {[%emt 00:01:07]} 9. Rb1 {[%clk 01:30:06]} {[%emt 00:00:50]}
e6 {[%clk 01:14:23]} {[%emt 00:09:36]} 10. Ne2 {[%clk 01:28:49]} {[%emt
00:01:47]} Bxb2 {[%clk 00:48:15]} {[%emt 00:26:39]} 11. Rxb2 {[%clk 01:29:07]}
{[%emt 00:00:12]} Qf6 {[%clk 00:48:37]} {[%emt 00:00:08]} 12. Nc3 {[%clk
01:27:46]} {[%emt 00:01:50]} Nge7 {[%clk 00:46:54]} {[%emt 00:02:14]} 13. a3
{[%clk 01:20:34]} {[%emt 00:07:42]} Nd4 {[%clk 00:42:57]} {[%emt 00:04:26]} 14.
Be2 {[%clk 01:19:44]} {[%emt 00:01:18]} Nec6 {[%clk 00:42:28]} {[%emt
00:01:01]} 15. b4 {[%clk 01:16:02]} {[%emt 00:04:12]} cxb4 {[%clk 00:34:43]}
{[%emt 00:08:15]} 16. axb4 {[%clk 01:16:14]} {[%emt 00:00:19]} O-O {[%clk
00:34:47]} {[%emt 00:00:27]} 17. Na4 {[%clk 01:09:55]} {[%emt 00:06:49]} Nxe2
{[%clk 00:21:44]} {[%emt 00:13:33]} 18. Kxe2 {[%clk 01:08:24]} {[%emt
00:02:00]} Ne5 {[%clk 00:18:33]} {[%emt 00:03:40]} 19. Rb3 {[%clk 01:04:00]}
{[%emt 00:04:55]} Nxc4 {[%clk 00:16:32]} {[%emt 00:02:32]} 20. Rg1 {[%clk
01:01:32]} {[%emt 00:02:57]} b5 {[%clk 00:15:38]} {[%emt 00:01:24]} 21. Nc3
{[%clk 00:59:57]} {[%emt 00:02:04]} Ne5 {[%clk 00:13:11]} {[%emt 00:02:58]} 22.
Rg3 {[%clk 00:59:00]} {[%emt 00:01:27]} Rfd8 {[%clk 00:12:48]} {[%emt
00:00:53]} 23. d3 {[%clk 00:56:29]} {[%emt 00:03:00]} Nc6 {[%clk 00:12:22]}
{[%emt 00:00:56]} 24. Kf1 {[%clk 00:53:59]} {[%emt 00:02:59]} Nxb4 {[%clk
00:11:52]} {[%emt 00:01:02]} 25. Ne2 {[%clk 00:52:58]} {[%emt 00:01:29]} Nc6
{[%clk 00:11:56]} {[%emt 00:00:26]} 26. d4 {[%clk 00:52:50]} {[%emt 00:00:38]}
e5 {[%clk 00:10:42]} {[%emt 00:01:45]} 27. d5 {[%clk 00:52:08]} {[%emt
00:01:12]} Na5 {[%clk 00:10:32]} {[%emt 00:00:40]} 28. Rc3 {[%clk 00:50:59]}
{[%emt 00:01:39]} Rdc8 {[%clk 00:10:24]} {[%emt 00:00:39]} 29. Qe1 {[%clk
00:49:41]} {[%emt 00:01:47]} Qd8 {[%clk 00:10:21]} {[%emt 00:00:33]} 30. Kg2
{[%clk 00:49:01]} {[%emt 00:01:10]} Rxc3 {[%clk 00:10:10]} {[%emt 00:00:42]} 31.
Qxc3 {[%clk 00:47:35]} {[%emt 00:01:56]} Nc4 {[%clk 00:10:17]} {[%emt
00:00:24]} 32. f4 {[%clk 00:46:55]} {[%emt 00:01:10]} f6 {[%clk 00:09:48]}
{[%emt 00:00:59]} 33. f5 {[%clk 00:46:49]} {[%emt 00:00:36]} Kf7 {[%clk
00:08:49]} {[%emt 00:01:29]} 34. fxg6+ {[%clk 00:46:19]} {[%emt 00:01:00]} hxg6
{[%clk 00:09:16]} {[%emt 00:00:04]} 35. f4 {[%clk 00:44:40]} {[%emt 00:02:09]}
Qe7 {[%clk 00:07:52]} {[%emt 00:01:53]} 36. Qd3 {[%clk 00:41:54]} {[%emt
00:03:16]} Re8 {[%clk 00:07:28]} {[%emt 00:00:53]} 37. f5 {[%clk 00:35:42]}
{[%emt 00:06:43]} g5 {[%clk 00:06:39]} {[%emt 00:01:19]} 38. Qf3 {[%clk
00:33:57]} {[%emt 00:02:14]} Rh8 {[%clk 00:06:22]} {[%emt 00:00:48]} 39. Rg4
{[%clk 00:33:13]} {[%emt 00:01:14]} Kf8 {[%clk 00:05:45]} {[%emt 00:01:07]} 40.
Qg3 {[%clk 00:32:56]} {[%emt 00:00:48]} Qg7 {[%clk 00:04:16]} {[%emt 00:02:00]}
41. Kf2 {[%clk 00:31:44]} {[%emt 00:01:42]} Qa7+ {[%clk 00:04:02]} {[%emt
00:00:45]} 42. Ke1 {[%clk 00:28:34]} {[%emt 00:03:39]} Ne3 {[%emt 00:01:32]} 43.
Rxg5 {[%clk 00:27:46]} fxg5 {[%clk 00:04:06]} {[%emt 00:00:41]} 44. Qxg5 {[%clk
00:27:50]} {[%emt 00:00:25]} Nc2+ {[%clk 00:02:43]} {[%emt 00:01:55]} 45. Kd1
{[%clk 00:24:20]} {[%emt 00:04:00]} Ne3+ {[%clk 00:03:05]} {[%emt 00:00:08]} 46.
Kd2 {[%clk 00:24:04]} {[%emt 00:00:46]} Nc4+ {[%clk 00:03:04]} {[%emt
00:00:32]} 47. Ke1 {[%clk 00:23:20]} {[%emt 00:01:13]} Rxh3 {[%clk 00:02:11]}
{[%emt 00:01:23]} 48. Qf6+ {[%clk 00:21:36]} {[%emt 00:02:13]} Kg8 {[%clk
00:01:37]} {[%emt 00:01:05]} 49. Qe6+ {[%clk 00:21:01]} {[%emt 00:01:05]} Qf7
{[%clk 00:01:29]} {[%emt 00:00:37]} 50. Qc8+ {[%clk 00:20:49]} {[%emt
00:00:42]} Kh7 {[%clk 00:01:49]} {[%emt 00:00:10]} 51. Qe6 {[%clk 00:19:20]}
{[%emt 00:01:58]} Rh1+ {[%clk 00:01:35]} {[%emt 00:00:46]} 52. Kf2 {[%clk
00:19:28]} {[%emt 00:00:21]} Qxe6 {[%clk 00:01:33]} {[%emt 00:00:33]} 53. dxe6
{[%clk 00:19:31]} {[%emt 00:00:26]} Kg7 {[%clk 00:01:53]} {[%emt 00:00:11]} 54.
Nc3 {[%clk 00:19:08]} {[%emt 00:00:53]} Nb6 {[%clk 00:02:00]} {[%emt 00:00:23]}
55. Ke2 {[%clk 00:17:26]} {[%emt 00:02:11]} Kf6 {[%clk 00:02:20]} {[%emt
00:00:11]} 56. Nd1 {[%clk 00:17:05]} {[%emt 00:00:50]} Rxd1 {[%clk 00:02:05]}
{[%emt 00:00:45]} 57. Kxd1 {[%emt 00:00:11]} d5 {[%emt 00:00:05]} 58. Kd2
{[%clk 00:16:13]} {[%emt 00:01:06]} dxe4 {[%clk 00:02:18]} {[%emt 00:00:18]} 59.
Ke3 {[%clk 00:16:26]} {[%emt 00:00:16]} Nc8 {[%clk 00:02:13]} {[%emt 00:00:36]}
60. Kxe4 {[%clk 00:16:53]} {[%emt 00:00:03]} Ne7 {[%clk 00:02:33]} {[%emt
00:00:11]} 0-1